Cogmind - Beta 15 @@@ ROGUE MODE // 2025.10.17 @ 20:29:08 Player: GermanMO Result: Destroyed by Y-45 Defender with Beam Rifle Performance ------------- Evolutions (1) 500 Regions Visited (3) 600 Robots Destroyed (42) 210 Value Destroyed (976) 976 Prototype IDs (0) 0 Alien Tech Used (0) 0 Bonus (24) 24 TOTAL SCORE: 2310 Bonus ------- High Alert Combat Kills 24 Cogmind --------- Core Integrity 0/400 Matter 13/300 Energy 100/100 System Corruption 1% Temperature Cool (9) Movement Core (100) Ox1 Location -9/Storage Parts ------- > --- POWER (1) -------- (None) > --- PROPULSION (2) --- (None) > --- UTILITY (3) ------ Small Storage Unit > --- WEAPON (3) ------- (None) > --- INVENTORY (8) ---- Improved Terrain Scanner Rocket Launcher Peak State ------------ > --- POWER ------------ Light Ion Engine > --- PROPULSION ------- Wheel Wheel > --- UTILITY ---------- Small Storage Unit Structural Scanner > --- WEAPON ----------- Rocket Launcher Rocket Launcher > --- INVENTORY -------- Improved Terrain Scanner Rocket Launcher Rocket Launcher Rocket Launcher Rocket Launcher Rocket Launcher Rocket Launcher [Rating: 10] Favorites ----------- Power Light Ion Engine Engine Light Ion Engine Propulsion Wheel Wheel Wheel Utility Small Storage Unit Device Structural Scanner Storage Small Storage Unit Weapon Assault Rifle Ballistic Gun Assault Rifle Launcher Rocket Launcher Build | -11 -10 -9 -9 ------- Run | Yrd Mat Mat Sto Slots Evolved 2 | . . 2 . Power . | . . . . Propulsion . | . . . . Utility 1 | . . 1 . Weapon 1 | . . 1 . Parts Attached 25 | 7 13 . 5 Power 4 | 1 3 . . Engine 4 | 1 3 . . Core . | . . . . Reactor . | . . . . Propulsion 6 | 2 4 . . Treads . | . . . . Leg . | . . . . Wheel 6 | 2 4 . . Hover . | . . . . Flight . | . . . . Utility 2 | 1 1 . . Device 1 | . 1 . . Storage 1 | 1 . . . Processor . | . . . . Hackware . | . . . . Protection . | . . . . Artifact . | . . . . Weapon 13 | 3 5 . 5 Energy Gun . | . . . . Energy Cannon . | . . . . Ballistic Gun 4 | 3 1 . . Ballistic Cannon . | . . . . Launcher 9 | . 4 . 5 Special Weapon . | . . . . Impact Weapon . | . . . . Slashing Weapon . | . . . . Piercing Weapon . | . . . . Special Melee Weapon . | . . . . Unidentified Prototypes . | . . . . Parts Lost 16 | . 6 5 5 Power 3 | . 3 . . Propulsion 3 | . 1 2 . Utility 1 | . 1 . . Weapon 9 | . 1 3 5 Highest Loss Streak 5 | . 3 5 5 To Critical Strikes . | . . . . Average Backups 6 | 3 7 7 5 Power . | . . . . Propulsion . | . . . . Utility 1 | . 1 1 1 Weapon 4 | 1 4 6 4 Tool/Special . | . . . . Unused Backups 4 | . 3 . 1 Power . | . . . . Propulsion . | . . . . Utility 2 | . 1 . 1 Weapon 2 | . 2 . . Tool/Special . | . . . . Average Slot Usage (%) 73 | . 93 64 20 Engine 9 | . 11 11 4 Wheel 19 | . 26 19 . Device 7 | . 11 . . Storage 12 | . 14 11 11 Ballistic Gun 14 | . 20 9 . Launcher 7 | . 6 13 5 Peak Build Rating 10 | 7 10 10 5 Average Rating 6 | 5 7 8 3 On Entrance 4 | . 7 8 3 Naked Turns . | . . . . Heaviest Build 20 | 12 17 20 10 Greatest Support 32 | 32 32 20 3 Greatest Overweight (x) 4 | . . 4 3 Average Overweight (x) . | . . . 2 Largest Inventory Capacity 8 | 8 8 8 8 Average Capacity 7 | 7 8 8 8 Most Carried 8 | 7 8 8 7 Average Carried 6 | 3 7 7 5 Final Capacity 8 | 8 8 8 8 Final Carried 8 | 7 8 7 2 Class Distribution -------------------- 97% | Mutant Dominant Class ---------------- Mutant | -10/Materials Mutant | -9/Materials Mutant | -9/Storage Resources | -11 -10 -9 -9 ----------- Run | Yrd Mat Mat Sto Matter Collected 717 | 276 395 . 46 Remotely . | . . . . Salvage Created 1041 | 187 718 50 86 Parts 78 | 18 51 3 6 Haulers Intercepted . | . . . . Recyclers Shooed 2 | 1 . . 1 Parts Field Recycled . | . . . . Retrieved Matter . | . . . . Parts Self-Destructed . | . . . . Prevented . | . . . . Kills | -11 -10 -9 -9 ------- Run | Yrd Mat Mat Sto Combat Hostiles Destroyed 26 | . 20 4 2 Guns 9 | . 9 . . AOE 17 | . 11 4 2 Classes Destroyed 7 | 3 4 . . Worker 5 | 1 4 . . Builder 3 | . 3 . . Tunneler 3 | 3 . . . Recycler 2 | 1 . . 1 Watcher 3 | . 3 . . Swarmer 3 | . 3 . . Grunt 23 | . 17 4 2 Best Kill Streak 10 | 2 10 4 2 Combat Bots Only 5 | . 5 4 2 Max Kills in Single Turn 3 | 1 3 2 2 Gunslinging . | . . . . Exploded 2 | . 2 2 2 Melee . | . . . . Uniques/NPCs Destroyed . | . . . . Combat | -11 -10 -9 -9 -------- Run | Yrd Mat Mat Sto Hostile Shots Fired 159 | . 70 32 57 Missed 30 | . 10 11 9 Hits 129 | . 60 21 48 Projectile 129 | . 60 21 48 Critical Strikes 1 | . 1 . . Damage Taken 1891 | . 831 285 775 Core 597 | . 189 57 351 Absorbed by Shields . | . . . . Core Remaining (%) 62 | 100 24 . . Volleys Fired 77 | 10 55 7 5 Largest 2 | 2 2 2 1 Hottest 66 | 40 66 66 33 Shots Fired 134 | 20 98 11 5 Gun 103 | 20 83 . . Cannon . | . . . . Launcher 31 | . 15 11 5 Special . | . . . . Kinetic 103 | 20 83 . . Thermal . | . . . . Explosive 31 | . 15 11 5 Electromagnetic . | . . . . Robot Hit Streak 10 | 6 10 5 2 Robot Miss Streak 3 | 3 2 1 1 Penetration Max . | . . . . Secondary Targets 1 | . 1 . . Max Gunslinging Chain 1 | . 1 . . Shots Hit Robots 89 | 12 68 6 3 Core Hits 67 | 6 45 9 7 Critical Kills . | . . . . Critical Parts Destroyed . | . . . . Critical Strikes . | . . . . Melee Attacks . | . . . . Impact . | . . . . Slashing . | . . . . Piercing . | . . . . Sneak Attacks . | . . . . Combat Hostiles . | . . . . Follow-up Attacks . | . . . . Damage Inflicted 2542 | 179 1687 478 198 Guns 882 | 179 703 . . Cannons . | . . . . Explosions 1654 | . 984 478 192 Melee . | . . . . Ramming 6 | . . . 6 Kinetic 882 | 179 703 . . Thermal . | . . . . Explosive 1636 | . 966 478 192 Electromagnetic 18 | . 18 . . Impact . | . . . . Slashing . | . . . . Piercing . | . . . . Highest Corruption 1 | . 1 . 1 Average Corruption 1 | . 1 . 1 Corruption Purged . | . . . . Corruption Blocked . | . . . . Effects 3 | . 2 . 1 Message Errors 2 | . 1 . 1 Matter Fused 1 | . 1 . . Overload Shots . | . . . . Overflow Damage 33 | . 27 6 . Projectiles . | . . . . Explosions 33 | . 27 6 . Melee . | . . . . Knockbacks . | . . . . Impact . | . . . . Kinetic . | . . . . Secondary . | . . . . Self-Inflicted Damage 239 | . 145 28 66 Shots 9 | . 5 2 2 Rammed 5 | . . . 5 Targets Rammed 5 | . . . 5 Kicked . | . . . . Crushed . | . . . . Highest Temperature 24 | . 24 24 . Average Temperature 11 | . 9 14 . Received Heat Transfer 747 | . 390 123 234 Siege Activations . | . . . . Martial Activations . | . . . . Shielding Activations . | . . . . Robots Disrupted . | . . . . Combat Hostiles . | . . . . Robots Corrupted . | . . . . Combat Hostiles . | . . . . Parts Fried . | . . . . Impact Corruptions . | . . . . Robots Melted . | . . . . Combat Hostiles . | . . . . Parts Melted . | . . . . Heat Transferred . | . . . . Parts Sabotaged . | . . . . Parts Stolen . | . . . . Parts Stripped . | . . . . Power Chain Reactions . | . . . . Alert | -11 -10 -9 -9 ------- Run | Yrd Mat Mat Sto Maximum Alert Level 2 | . 2 1 . Low Security (%) 79 | 100 73 59 100 Level 1 13 | . 15 40 . Level 2 6 | . 11 . . Level 3 . | . . . . Level 4 . | . . . . Level 5 . | . . . . High Security . | . . . . Max Security . | . . . . Peak Influence 478 | 5 478 299 100 Initial 191 | . 3 191 100 Average 131 | 1 160 218 66 Influence Increases 995 | 25 744 148 78 Destroy 0b10 Robot/C 520 | . 400 80 40 Destroy 0b10 Robot/NC 80 | 25 50 . 5 Destroy Leader 96 | . 86 10 . Successful Hack 26 | . 20 6 . Disable Machine 75 | . 60 15 . Destroy Structure 168 | . 98 37 33 Lose Combat Pursuer 30 | . 30 . . Influence Decreases 957 | 20 295 363 279 Entered New Map 404 | . 2 263 139 Time Decay 393 | 20 233 50 90 Lost Part 160 | . 60 50 50 Squads Dispatched 8 | . 6 1 1 Investigation 6 | . 5 1 . Extermination . | . . . . Reinforcement 2 | . 1 . 1 Assault . | . . . . Garrison . | . . . . Intercept . | . . . . Searches Triggered . | . . . . Construction Impeded 1 | . . . 1 Haulers Reinforced . | . . . . Active Scanning Responses . | . . . . Cargo Convoy Interrupts . | . . . . Stealth | -11 -10 -9 -9 --------- Run | Yrd Mat Mat Sto Distress Signals . | . . . . Communications Jammed . | . . . . Distress Signals . | . . . . Times Spotted 40 | . 28 9 3 Peak Tracking Total 5 | . 4 5 3 Tactical Retreats 2 | . 2 . . Traps | -11 -10 -9 -9 ------- Run | Yrd Mat Mat Sto Traps Triggered 5 | . 3 . 2 Indirectly . | . . . . Trap Hack Attempts . | . . . . Triggered . | . . . . Disarmed . | . . . . Reprogrammed . | . . . . Reused . | . . . . Traps Extracted . | . . . . Installed . | . . . . Triggered . | . . . . Machines | -11 -10 -9 -9 ---------- Run | Yrd Mat Mat Sto Machines Disabled 6 | . 5 1 . Max in Single Turn 1 | . 1 1 . Machines Repaired . | . . . . Machines Dismantled . | . . . . Machines Sabotaged . | . . . . Overloaded Fab Kills . | . . . . Hacking | -11 -10 -9 -9 --------- Run | Yrd Mat Mat Sto Machines Accessed 5 | . 4 1 . Terminals 5 | . 4 1 . Fabricators . | . . . . Repair Stations . | . . . . Recycling Units . | . . . . Scanalyzers . | . . . . Garrison Access . | . . . . Total Hacks 16 | . 12 4 . Successful 6 | . 4 2 . Failed 10 | . 8 2 . Catastrophic 1 | . 1 . . Database Lockouts . | . . . . Manual 17 | . 13 4 . Terminals 16 | . 12 4 . Fabricators . | . . . . Repair Stations . | . . . . Recycling Units . | . . . . Scanalyzers . | . . . . Garrison Access . | . . . . Terminal Hacks 3 | . 3 . . Robot Analysis 1 | . 1 . . Recall Investigation 1 | . 1 . . Zone Layout 1 | . 1 . . Fabricator Hacks . | . . . . Repair Station Hacks . | . . . . Recycling Unit Hacks . | . . . . Scanalyzer . | . . . . Garrison Access Hacks . | . . . . Unauthorized Hacks 2 | . 1 1 . Terminals 2 | . 1 1 . Assimilate 1 | . . 1 . Disrupt 1 | . 1 . . Fabricators . | . . . . Repair Stations . | . . . . Recycling Units . | . . . . Scanalyzers . | . . . . Garrison Access . | . . . . Data Cores Recovered . | . . . . Used . | . . . . Hacking Detections 5 | . 4 1 . Full Trace Events 5 | . 4 1 . Feedback Events . | . . . . Feedback Blocked . | . . . . Robot Schematics Acquired . | . . . . Robots Built . | . . . . Authchips . | . . . . Time . | . . . . Total Robot Build Rating . | . . . . Part Schematics Acquired . | . . . . Parts Built . | . . . . Authchips . | . . . . Time . | . . . . Total Part Build Rating . | . . . . Parts Repaired . | . . . . Time . | . . . . Parts Recycled . | . . . . Recycled Matter . | . . . . Retrieved Matter . | . . . . Retrieved Components . | . . . . Parts Scanalyzed . | . . . . Part Schematics Acquired . | . . . . Parts Damaged . | . . . . Bothacking | -11 -10 -9 -9 ------------ Run | Yrd Mat Mat Sto Used RIF Installer . | . . . . Robots Hacked . | . . . . Non-combat . | . . . . Combat . | . . . . Robot Hacks Applied . | . . . . Relay Couplers Released . | . . . . Fabnet Peak Effective % . | . . . . Robots Rewired . | . . . . Allies Hacked . | . . . . Hacks Repelled . | . . . . Allies | -11 -10 -9 -9 -------- Run | Yrd Mat Mat Sto Total Allies . | . . . . Largest Group . | . . . . Highest-Rated Group . | . . . . Highest-Rated Ally . | . . . . Total Orders . | . . . . Ally Attacks . | . . . . Total Damage . | . . . . Kills . | . . . . Allies Corrupted . | . . . . Allies Melted . | . . . . Intel | -11 -10 -9 -9 ------- Run | Yrd Mat Mat Sto Active Infowar (turns) 468 | . 468 . . Structural 468 | . 468 . . Robot Analysis Total 1 | . 1 . . Derelict Logs Recovered . | . . . . Drone Launches . | . . . . Drone Recoveries . | . . . . Exploration | -11 -10 -9 -9 ------------- Run | Yrd Mat Mat Sto Turns Passed 966 | 112 552 119 183 Spaces Moved 636 | 73 352 117 94 Core 118 | 19 . 5 94 Treads . | . . . . Legs . | . . . . Wheels 518 | 54 352 112 . Hover . | . . . . Flight . | . . . . Fastest Speed 50 | 50 80 80 100 Average Speed 96 | 86 85 87 157 Slowest Speed 250 | 100 100 250 200 Overloaded Moves . | . . . . Propulsion Burnouts . | . . . . Robots Hopped . | . . . . Potential Cave-ins . | . . . . Cave-ins Triggered . | . . . . Exploration Rate (%) 23 | 4 64 15 12 Regions Visited 3 Branch Regions 1 Pre-discovered Areas . | . . . . Known Exits Taken . | . . . . Unknown Exits Taken 3 | 1 1 1 . Scrap Searched . | . . . . Spaces Dug 12 | . . 12 . Terrain Destroyed 202 | . 113 36 53 Melee . | . . . . Projectile . | . . . . AOE 202 | . 113 36 53 Terrain Rammed . | . . . . Walls Destroyed . | . . . . Machines Disabled . | . . . . Actions | -11 -10 -9 -9 --------- Run | Yrd Mat Mat Sto Total 858 | 102 510 124 122 Wait 75 | . 63 . 12 Move 633 | 72 351 116 94 Hop . | . . . . Pick Up 24 | 12 12 . . Fast Attach 7 | 1 6 . . Attach 21 | 6 9 1 5 Detach 4 | 1 3 . . Swap . | . . . . Drop 12 | . 11 . 1 Fire 77 | 10 55 7 5 Melee . | . . . . Ram 5 | . . . 5 Kick . | . . . . Crush . | . . . . Escape Stasis . | . . . . Rewire . | . . . . Trap . | . . . . Miscellaneous . | . . . . Route ------- -11/Scrapyard -10/Materials (discovered 2 exits: *Mat / [*Min]) -9/Materials (discovered 2 exits: [*Min] / [*Sto]) -9/Storage History --------- Turn | Location | Event 31 | -11/Scrapyard | Discovered new exit (range 16) 113 | -11/Scrapyard | Entered Materials 309 | -10/Materials | Build established: Mutant 315 | -10/Materials | Lost 3 parts (1p1n1w) 353 | -10/Materials | Discovered new exit (range 6) 375 | -10/Materials | Core integrity fell below 50% 525 | -10/Materials | Discovered new exit (range 6) 665 | -10/Materials | Entered another Materials area 665 | -9/Materials | Evolved 2 slots: Utility x1, Weapon x1 702 | -9/Materials | Discovered new exit (range 6) 756 | -9/Materials | Discovered new exit (range 15) 784 | -9/Materials | Entered Storage 810 | -9/Storage | Lost 5 parts (2n3w) 915 | -9/Storage | Core integrity fell below 50% 944 | -9/Storage | Core integrity fell below 20% 967 | -9/Storage | Destroyed by Y-45 Defender with Beam Rifle Last Messages --------------- 00921_ Slammed into G-34 Mercenary. 00922_ U-05 Engineer lays Concrete. 00925_ Rocket Launcher destroyed. 00926_ U-05 Engineer builds a Wall. 00928_ Slammed into U-05 Engineer. 00930_ ALERT: Construction progress impeded, dispatching reinforcements to local area. 00931_ R-06 Scavenger collects Ion Engine. 00933_ G-34 Mercenary destroyed. 00938_ The unstable cave ceiling collapses. 00941_ Acquired 25 matter. 00946_ Rocket Launcher destroyed. 00946_ R-06 Scavenger collects Ion Engine. 00946_ Acquired 21 matter. 00949_ R-06 Scavenger collects Aluminum Leg. 00954_ R-06 Scavenger destroyed. 00955_ Rocket Launcher destroyed. 00956_ The unstable cave ceiling collapses. 00964_ Rocket Launcher destroyed. 00965_ The unstable cave ceiling collapses. Map ----- +----------------------------------------------------+ | ?????????????????????????????????????????????????? | | ?????????????????????????????????????????????????? | | ?????????????????????????????????????????????????? | | ?????????????????????????????????????????????????? | | ?????????????????????????????????????????????????? | | ?????????????????????????????????????????????????? | | ?????????????????????????????????????????????????? | | ?????????????????????????????????????????????????? | | ?????????????????????????????????????????????????? | | ?????????????????????????????????????????????????? | | ??????????????????????????????? ???????????????? | | ??????????????????????????????# #??????????????? | | ?????????????????????#"""#????# #??????????????? | | ????????????????????##"Y"###### #??????????????? | | ???????????????????## + #??????????????? | | ????????????????????T # #??????????????? | | ????????????????????# # #??????????????? | | ????????????????????# /[ + +??????????????? | | ????????????????????# [] # #??????????????? | | ????????????????????# # #??????????????? | | ????????????????????# # #??????????????? | | ?????????????????#### # #??????????????? | | ?????????????##### # ### ################ | | ?????????????# ### | | ?????????????# ## | | ?????????????# = Y@ %= | | ?????????????# ###################### | | ?????????????# #???????????????????? | | ?????????????##### ### ###???????????????????? | | ?????????????????##?### ##?????????????????????? | | | | | | | | | | | | | | | | | | | | | | | | | | | | | | | | | | | | | | | | | +----------------------------------------------------+ Best States ------------- Heat Dissipation 28 Energy Generation 10 Energy Capacity 250 Matter Stores 300 Matter Capacity 300 Sight Range 16 Terrain Scan Density 10 Evasion (%) 50 Item Schematics ----------------- None Robot Schematics ------------------ None Fabricated ------------ Nothing Repaired ---------- Nothing Alien Tech Used ----------------- None Achievements -------------- True Hacker Challenges ------------ None Game ------ Seed AssaultThiefScythe Manual? 0 Play Time 00:27:34 Cumulative 28.8 hours Start 2025.10.17 @ 19:45:58 End 2025.10.17 @ 20:29:08 Sessions 3 Manual Loads 0 Difficulty Rogue Special Mode None Game No. 45 Rogue 18 Adventurer 0 Explorer 27 Win Type - Total 0 Types 0/0/0/0/0/0/0/0/0/0 Lore% 20 Gallery% 36 Achievement% 29 Wizard Run 0 Options --------- Layout 1 ASCII 0 Keyboard 0 Movement Mouse Keybinds 0 Fullscreen 2 Font 16/SmallcapsGlow Map View 50x35 Zoom Use 0% Tactical HUD 1 Map Filters NONE Filters NONE Steam X RUN: f96c4ffb-e64e-4d4c-b639-7fb97d0f28b3